fUST/lending_fUST_20260114
["ID","MTS","AMOUNT","RATE_DAILY","PERIOD"]
[401874997,1768392649944,-263.37981658,0.00022737,48]
[401874999,1768392649954,-617.40005154,0.00022762,2]
[401875001,1768392649964,-225.18697532,0.00022762,2]
[401875003,1768392649973,-2982.60894464,0.00022762,2]
[401875005,1768392649983,-38163.490864,0.00022811,30]
[401875007,1768392649993,-12705.37423421,0.00022814,2]
[401875009,1768392650003,-1145.51309932,0.00022975,18]
[401875011,1768392650012,-168.0,0.00022992,2]
[401875013,1768392650022,-263.37981658,0.00023001,63]
[401875015,1768392650032,-450.0,0.00023014,2]
[401875017,1768392650042,-1400.0,0.00023014,2]
[401875019,1768392650052,-850.0,0.00023014,2]
[401875021,1768392650061,-4070.772358,0.000231,30]
[401875024,1768392650071,-3155.0,0.00023134,2]
[401875026,1768392650080,-182.95072115,0.0002315,2]
[401875028,1768392650089,-3155.0,0.0002315,2]
[401875030,1768392650099,-800.0,0.00023157,2]
[401875032,1768392650109,-3155.0,0.0002317,2]
[401875034,1768392650119,-398.3080868,0.00023194,102]
[401875036,1768392650130,-13783.2104345,0.000232,2]
[401875038,1768392650140,-39103.1577225,0.00023211,2]
[401875040,1768392650150,-3155.0,0.00023238,2]
[401875042,1768392650162,-263.37981658,0.00023265,79]
[401875044,1768392650172,-2000.0,0.00023276,7]
[401875046,1768392650181,-800.0,0.00023286,2]
[401875048,1768392650190,-800.0,0.00023303,2]
[401875050,1768392650199,-640.24385345,0.0002331,2]
[401875052,1768392650211,-233.51889341,0.0002331,2]
[401875054,1768392650220,-3092.96547559,0.0002331,2]
[401875056,1768392650229,-3155.0,0.0002333,2]
[401875058,1768392650239,-1000.0,0.00023331,2]
[401875060,1768392650249,-1000.0,0.00023342,10]
[401875062,1768392650258,-1000.0,0.00023342,10]
[401875064,1768392650268,-1000.0,0.00023342,10]
[401875066,1768392650277,-1000.0,0.00023347,2]
[401875068,1768392650287,-2000.0,0.0002344,2]
[401875070,1768392650296,-1000.0,0.00023451,2]
[401875072,1768392650306,-800.0,0.00023477,2]
[401875074,1768392650315,-1000.0,0.00023482,2]
[401875076,1768392650325,-1000.0,0.00023504,2]
[401875078,1768392650335,-263.37981658,0.00023529,94]
[401875080,1768392650344,-600.0,0.00023562,2]
[401875082,1768392650353,-950.0,0.00023562,2]
[401875084,1768392650363,-1288.4937816,0.00023593,2]
[401875086,1768392650373,-3155.0,0.00023595,2]
[401875088,1768392650383,-5432.92,0.000236,14]
[401875090,1768392650392,-167.77,0.000236,7]
[401875092,1768392650402,-671.695781,0.000236,2]
[401875095,1768392650412,-151.0,0.000236,2]
[401875097,1768392650421,-671.695781,0.000236,2]
[401875098,1768392650431,-671.695781,0.000236,2]
[401875101,1768392650440,-671.695781,0.000236,2]
[401875102,1768392650449,-151.0,0.000236,2]
[401875105,1768392650459,-151.0,0.000236,2]
[401875107,1768392650469,-171.876779,0.000236,2]
[401875109,1768392650478,-151.0,0.000236,2]
[401875111,1768392650487,-151.0,0.000236,2]
[401875113,1768392650497,-151.0,0.000236,2]
[401875115,1768392650506,-500.0,0.00023604,2]
[401875117,1768392650515,-800.0,0.00023607,2]
[401875118,1768392650524,-1000.0,0.00023609,2]
[401875120,1768392650534,-1000.0,0.00023634,2]
[401875122,1768392650543,-2000.0,0.00023642,2]
[401875124,1768392650553,-3155.0,0.00023672,2]
[401875126,1768392650562,-1000.0,0.00023691,2]
[401875128,1768392650572,-1536.58847632,0.00023702,2]
[401875130,1768392650581,-1000.0,0.00023768,2]
[401875132,1768392650590,-87.91552236,0.00023793,110]
[401875134,1768392650600,-398.3080868,0.00023793,110]
[401875136,1768392650609,-2222.24,0.000238,7]
[401875138,1768392650619,-500.0,0.00023852,2]
[401875140,1768392650628,-663.93287602,0.00023858,2]
[401875142,1768392650638,-242.15909246,0.00023858,2]
[401875144,1768392650648,-3207.40519818,0.00023858,2]
[401875146,1768392650657,-500.0,0.00023886,2]
[401875149,1768392650667,-3155.0,0.00023889,2]
[401875151,1768392650676,-2000.0,0.00023896,2]
[401875153,1768392650686,-374.32,0.000239,7]
[401875155,1768392650696,-377.31,0.000239,7]
[401875157,1768392650705,-800.0,0.00023919,2]
[401875159,1768392650715,-500.0,0.00023944,2]
[401875161,1768392650725,-800.0,0.00023944,2]
[401875163,1768392650735,-500.0,0.00023966,2]
[401875165,1768392650744,-3155.0,0.00023987,2]
[401875167,1768392650753,-1041.66666667,0.00024,7]
[401875169,1768392650763,-500.0,0.00024033,2]
[401875171,1768392650772,-168.0,0.00024056,2]
[401875173,1768392650781,-2000.0,0.00024069,2]
[401875175,1768392650792,-1145.51309932,0.00024069,19]
[401875177,1768392650801,-1000.0,0.00024092,2]
[401875178,1768392650811,-1077.0,0.00024093,2]
[401875181,1768392650820,-750.0,0.0002411,2]
[401875183,1768392650830,-1601.4141805,0.0002411,2]
[401875185,1768392650840,-1050.0,0.0002411,2]
[401875187,1768392650849,-800.0,0.00024115,2]
[401875189,1768392650859,-2000.0,0.00024172,2]
[401875191,1768392650868,-3155.0,0.00024181,2]
[401875193,1768392650877,-19313.50358939,0.00024199,2]
[401875195,1768392650887,-40340.44,0.000242,2]
[401875197,1768392650897,-275.55471384,0.000242,2]
[401875199,1768392650907,-151.0,0.000242,2]
[401875201,1768392650916,-151.0,0.000242,2]
[401875203,1768392650926,-151.0,0.000242,2]
[401875205,1768392650935,-151.0,0.000242,2]
[401875207,1768392650945,-151.0,0.000242,2]
[401875209,1768392650954,-151.0,0.000242,2]
[401875211,1768392650963,-151.0,0.000242,2]
[401875213,1768392650972,-151.0,0.000242,2]
[401875215,1768392650982,-230.012904,0.000242,2]
[401875217,1768392650991,-151.0,0.000242,2]
[401875219,1768392651000,-1838.09205,0.000242,2]
[401875221,1768392651009,-151.0,0.000242,2]
[401875223,1768392651019,-1838.09205,0.000242,2]
[401875225,1768392651028,-1838.09205,0.000242,2]
[401875226,1768392651038,-1838.09205,0.000242,2]
[401875229,1768392651047,-151.0,0.000242,2]
[401875230,1768392651057,-151.0,0.000242,2]
[401875233,1768392651067,-174.038823,0.000242,2]
[401875235,1768392651077,-174.038823,0.000242,2]
[401875237,1768392651087,-174.038823,0.000242,2]
[401875239,1768392651098,-174.038823,0.000242,2]
[401875240,1768392651107,-386.000551,0.000242,2]
[401875242,1768392651117,-386.000551,0.000242,2]
[401875245,1768392651128,-386.000551,0.000242,2]
[401875246,1768392651138,-386.000551,0.000242,2]
[401875248,1768392651147,-171.320259,0.000242,2]
[401875251,1768392651158,-800.0,0.00024217,2]
[401875253,1768392651179,-800.0,0.00024266,2]
[401875255,1768392651190,-500.0,0.00024316,2]
[401875256,1768392651199,-3155.0,0.00024327,2]
[401875258,1768392651210,-3155.0,0.00024331,2]
[401875260,1768392651219,-3155.0,0.0002434,2]
[401875262,1768392651228,-3155.0,0.00024343,2]
[401875264,1768392651238,-1000.0,0.00024367,2]
[401875266,1768392651247,-800.0,0.00024395,2]
[401875268,1768392651257,-688.49839244,0.00024406,2]
[401875270,1768392651267,-265.87708981,0.00024406,2]
[401875272,1768392651276,-3326.07919052,0.00024406,2]
[401875274,1768392651285,-1000.0,0.00024418,2]
[401875276,1768392651295,-3155.0,0.0002442,2]
[401875278,1768392651304,-3155.0,0.00024434,2]
[401875280,1768392651314,-3155.0,0.00024473,2]
[401875282,1768392651324,-3155.0,0.00024494,2]
[401875284,1768392651333,-800.0,0.00024505,2]
[401875286,1768392651343,-791.34915639,0.00024555,2]
[401875288,1768392651352,-2000.0,0.00024563,7]
[401875290,1768392651362,-3155.0,0.00024567,2]
[401875292,1768392651371,-168.0,0.00024568,2]
[401875294,1768392651381,-800.0,0.00024584,2]
[401875296,1768392651390,-800.0,0.00024599,2]
[401875298,1768392651400,-2000.0,0.00024606,2]
[401875300,1768392651410,-900.0,0.00024658,2]
[401875302,1768392651419,-1150.0,0.00024658,2]
[401875304,1768392651428,-500.0,0.00024658,2]
[401875306,1768392651438,-500.0,0.00024672,2]
[401875308,1768392651448,-1000.0,0.00024677,2]
[401875310,1768392651458,-12705.37423421,0.00024707,2]
[401875313,1768392651468,-500.0,0.00024784,2]
[401875314,1768392651479,-500.0,0.00024795,2]
[401875317,1768392651488,-800.0,0.00024804,2]
[401875319,1768392651498,-151.0,0.00024832,7]
[401875321,1768392651507,-424.867584,0.00024832,7]
[401875323,1768392651516,-424.867584,0.00024832,7]
[401875324,1768392651526,-424.867584,0.00024832,7]
[401875327,1768392651537,-424.867584,0.00024832,7]
[401875329,1768392651547,-151.0,0.00024832,7]
[401875331,1768392651557,-151.0,0.00024832,7]
[401875333,1768392651566,-151.0,0.00024832,7]
[401875334,1768392651575,-151.0,0.00024832,7]
[401875336,1768392651584,-151.0,0.00024832,7]
[401875338,1768392651594,-1000.0,0.00024836,2]
[401875340,1768392651603,-3155.0,0.00024876,2]
[401875342,1768392651612,-5432.92,0.000249,14]
[401875344,1768392651622,-151.0,0.000249,7]
[401875346,1768392651632,-181.655666,0.000249,7]
[401875348,1768392651642,-151.0,0.000249,7]
[401875350,1768392651652,-180.50802,0.000249,7]
[401875352,1768392651661,-151.0,0.000249,7]
[401875354,1768392651670,-151.0,0.000249,7]
[401875356,1768392651679,-167.77,0.000249,7]
[401875358,1768392651689,-369.592925,0.000249,7]
[401875360,1768392651698,-369.592925,0.000249,7]
[401875362,1768392651707,-369.592925,0.000249,7]
[401875365,1768392651717,-151.0,0.000249,7]
[401875367,1768392651729,-369.592925,0.000249,7]
[401875369,1768392651738,-151.0,0.000249,7]
[401875371,1768392651748,-151.0,0.000249,7]
[401875373,1768392651757,-490.347103,0.000249,7]
[401875375,1768392651766,-490.347103,0.000249,7]
[401875377,1768392651776,-490.347103,0.000249,7]
[401875379,1768392651786,-490.347103,0.000249,7]
[401875381,1768392651795,-490.971226,0.000249,7]
[401875382,1768392651805,-490.971226,0.000249,7]
[401875385,1768392651815,-490.971226,0.000249,7]
[401875386,1768392651825,-490.971226,0.000249,7]
[401875389,1768392651835,-505.094065,0.000249,7]
[401875390,1768392651845,-505.094065,0.000249,7]
[401875393,1768392651854,-487.891031,0.000249,7]
[401875394,1768392651864,-505.094065,0.000249,7]
[401875396,1768392651874,-505.094065,0.000249,7]
[401875399,1768392651884,-487.891031,0.000249,7]
[401875401,1768392651894,-487.891031,0.000249,7]
[401875403,1768392651904,-487.891031,0.000249,7]
[401875405,1768392651914,-151.0,0.000249,7]
[401875407,1768392651924,-250.203788,0.000249,7]
[401875409,1768392651935,-250.203788,0.000249,7]
[401875411,1768392651946,-1844.136293,0.000249,7]
[401875413,1768392651956,-250.203788,0.000249,7]
[401875415,1768392651966,-1844.136293,0.000249,7]
[401875434,1768392652155,-250.203788,0.000249,7]
[401875436,1768392652176,-1844.136293,0.000249,7]
[401875438,1768392652195,-1844.136293,0.000249,7]
[401875440,1768392652216,-151.0,0.000249,7]
[401875442,1768392652237,-633.419635,0.000249,7]
[401875444,1768392652256,-633.419635,0.000249,7]
[401875446,1768392652268,-633.419635,0.000249,7]
[401875448,1768392652279,-633.419635,0.000249,7]
[401875449,1768392652292,-879.438014,0.000249,7]
[401875451,1768392652302,-879.438014,0.000249,7]
[401875453,1768392652320,-879.438014,0.000249,7]
[401875456,1768392652334,-879.438014,0.000249,7]
[401875457,1768392652347,-428.566923,0.000249,7]
[401875459,1768392652359,-216.477356,0.000249,7]
[401875461,1768392652371,-428.566923,0.000249,7]
[401875463,1768392652384,-216.477356,0.000249,7]
[401875465,1768392652395,-428.566923,0.000249,7]
[401875467,1768392652408,-216.477356,0.000249,7]
[401875469,1768392652419,-428.566923,0.000249,7]
[401875470,1768392652427,-216.477356,0.000249,7]
[401875471,1768392652437,-151.0,0.000249,7]
[401875472,1768392652448,-666.883218,0.000249,7]
[401875473,1768392652457,-666.883218,0.000249,7]
[401875474,1768392652468,-666.883218,0.000249,7]
[401875475,1768392652477,-666.883218,0.000249,7]
[401875476,1768392652489,-151.0,0.000249,7]
[401875477,1768392652500,-894.119727,0.000249,7]
[401875478,1768392652513,-894.119727,0.000249,7]
[401875479,1768392652523,-894.119727,0.000249,7]
[401875480,1768392652533,-894.119727,0.000249,7]
[401875481,1768392652543,-431.74536,0.000249,7]
[401875482,1768392652555,-431.74536,0.000249,7]
[401875483,1768392652565,-431.74536,0.000249,7]
[401875484,1768392652574,-431.74536,0.000249,7]
[401875485,1768392652584,-151.0,0.000249,7]
[401875486,1768392652594,-3688.352014,0.000249,7]
[401875487,1768392652603,-151.0,0.000249,7]
[401875488,1768392652612,-3688.352014,0.000249,7]
[401875489,1768392652622,-3688.352014,0.000249,7]
[401875490,1768392652631,-3688.352014,0.000249,7]
[401875491,1768392652641,-153.839404,0.000249,7]
[401875492,1768392652650,-240.755518,0.000249,7]
[401875493,1768392652660,-237.361203,0.000249,7]
[401875495,1768392652670,-237.361203,0.000249,7]
[401875496,1768392652679,-151.0,0.000249,7]
[401875498,1768392652689,-237.361203,0.000249,7]
[401875500,1768392652698,-151.0,0.000249,7]
[401875502,1768392652707,-237.361203,0.000249,7]
[401875504,1768392652717,-653058.728757,0.000249,2]
[401875506,1768392652726,-7931.0,0.00024913,2]
[401875508,1768392652735,-1000.0,0.00024917,2]
[401875510,1768392652745,-200.26879672,0.00024932,14]
[401875512,1768392652761,-500.0,0.00024932,2]
[401875514,1768392652780,-800.0,0.00024953,2]
[401875516,1768392652791,-713.97283296,0.00024954,2]
[401875518,1768392652801,-3449.14412057,0.00024954,2]
[401875520,1768392652811,-800.0,0.00024979,2]
[401875522,1768392652822,-1082.98429516,0.00024985,2]
[401875524,1768392652833,-2000.0,0.00024985,2]
[401875526,1768392652843,-500.4,0.00025,60]
[401875527,1768392652855,-1041.66666667,0.00025,30]
[401875529,1768392652866,-499.3,0.00025004,7]
[401875531,1768392652875,-3155.0,0.00025041,2]
[401875533,1768392652886,-1000.0,0.00025062,7]
[401875535,1768392652896,-2000.0,0.00025066,7]
[401875537,1768392652908,-500.0,0.00025069,2]
[401875539,1768392652919,-3155.0,0.00025094,2]
[401875541,1768392652928,-2222.24,0.000251,7]
[401875543,1768392652938,-2000.0,0.00025103,7]
[401875545,1768392652947,-800.0,0.00025161,7]
[401875547,1768392652957,-1145.51309932,0.00025163,21]
[401875549,1768392652966,-800.0,0.00025204,7]
[401875551,1768392652976,-250.0,0.00025205,2]
[401875553,1768392652985,-1186.74681137,0.00025205,2]
[401875555,1768392652995,-1250.0,0.00025205,2]
[401875557,1768392653005,-500.0,0.00025206,2]
[401875559,1768392653015,-800.0,0.00025289,7]
[401875561,1768392653024,-374.32,0.000253,7]
[401875563,1768392653034,-377.31,0.000253,7]
[401875565,1768392653043,-1000.0,0.00025307,7]
[401875567,1768392653053,-500.0,0.00025343,2]
[401875569,1768392653062,-13783.2104345,0.00025352,2]
[401875571,1768392653072,-2000.0,0.00025365,7]
[401875573,1768392653082,-39103.1577225,0.00025367,2]
[401875575,1768392653091,-633.2980032,0.000254,30]
[401875577,1768392653101,-308.0,0.00025479,14]
[401875579,1768392653110,-500.0,0.0002548,2]
[401875581,1768392653120,-500.0,0.00025489,7]
[401875583,1768392653129,-1077.0,0.00025494,2]
[401875584,1768392653138,-740.38982778,0.00025502,2]
[401875586,1768392653148,-3576.76245303,0.00025502,2]
[401875588,1768392653159,-2000.0,0.00025513,7]
[401875590,1768392653171,-1000.0,0.00025527,7]
[401875592,1768392653181,-500.0,0.00025548,7]
[401875593,1768392653190,-500.0,0.00025565,7]
[401875594,1768392653200,-40340.44,0.000256,2]
[401875595,1768392653210,-500.0,0.00025617,2]
[401875596,1768392653219,-2000.0,0.00025626,7]
[401875597,1768392653228,-1000.0,0.00025676,10]
[401875598,1768392653238,-1000.0,0.00025676,10]
[401875599,1768392653248,-1000.0,0.00025676,10]
[401875600,1768392653257,-715.0,0.00025676,10]
[401875601,1768392653266,-2000.0,0.00025683,7]
[401875602,1768392653276,-11343.4242698,0.000257,3]
[401875603,1768392653285,-1658.9716293,0.00025702,2]
[401875604,1768392653295,-1001.0,0.00025707,120]
[401875605,1768392653306,-350.0,0.00025753,2]
[401875606,1768392653315,-1350.0,0.00025753,2]
[401875607,1768392653325,-500.0,0.00025754,2]
[401875608,1768392653334,-2000.07602471,0.00025769,2]
[401875609,1768392653343,-1000.0,0.00025805,7]
[401875610,1768392653352,-2000.0,0.00025839,7]
[401875611,1768392653361,-3823.0,0.00025843,120]
[401875612,1768392653370,-2000.0,0.00025846,7]
[401875613,1768392653379,-2000.0,0.00025849,7]
[401875614,1768392653389,-500.0,0.00025891,2]
[401875616,1768392653398,-1288.4937816,0.00025941,2]
[401875618,1768392653408,-160.0,0.00025981,3]
[401875619,1768392653417,-1041.66666667,0.00026,10]
[401875621,1768392653427,-4000.0,0.00026,4]
[401875623,1768392653437,-1024.9030344,0.00026,2]
[401875624,1768392653446,-1041.66666667,0.00026,3]
[401875625,1768392653456,-901.46550708,0.00026002,7]
[401875626,1768392653465,-4638.75,0.00026027,2]
[401875628,1768392653475,-500.0,0.00026028,2]
[401875630,1768392653485,-767.7842514,0.0002605,2]
[401875632,1768392653494,-2000.0,0.00026078,7]
[401875634,1768392653504,-2222.24,0.000261,7]
[401875636,1768392653514,-5432.92,0.000261,14]
[401875637,1768392653523,-167.77,0.000261,7]
[401875639,1768392653533,-1000.0,0.00026146,7]
[401875641,1768392653543,-500.0,0.00026152,7]
[401875642,1768392653554,-2000.0,0.00026161,7]
[401875643,1768392653563,-2000.0,0.00026162,7]
[401875644,1768392653573,-500.0,0.00026165,2]
[401875645,1768392653582,-1000.0,0.00026218,7]
[401875646,1768392653592,-500.0,0.00026224,7]
[401875647,1768392653601,-1000.0,0.00026255,7]
[401875648,1768392653610,-1145.51309932,0.00026257,22]
[401875649,1768392653620,-2840.37309884,0.00026284,2]
[401875650,1768392653629,-450.0,0.00026301,2]
[401875651,1768392653639,-1450.0,0.00026301,2]
[401875652,1768392653648,-500.0,0.00026302,2]
[401875653,1768392653658,-2840.37309884,0.00026374,2]
[401875654,1768392653666,-2000.0,0.00026382,7]
[401875655,1768392653675,-2000.0,0.00026396,7]
[401875656,1768392653684,-2000.0,0.00026421,7]
[401875657,1768392653694,-500.0,0.00026439,2]
[401875658,1768392653703,-1000.0,0.00026479,7]
[401875659,1768392653713,-330.0,0.00026494,7]
[401875660,1768392653723,-500.0,0.00026502,7]
[401875661,1768392653733,-522.88356834,0.00026513,7]
[401875662,1768392653742,-155.0,0.00026575,21]
[401875663,1768392653752,-500.0,0.00026576,2]
[401875664,1768392653762,-1000.0,0.0002659,7]
[401875665,1768392653772,-796.19226871,0.00026598,2]
[401875666,1768392653781,-12705.37423421,0.000266,2]
[401875667,1768392653792,-160.0,0.00026633,4]
[401875668,1768392653802,-2840.37309884,0.00026643,2]
[401875669,1768392653811,-2000.0,0.00026659,7]
[401875670,1768392653822,-671.695781,0.00026659,7]
[401875671,1768392653831,-151.0,0.00026659,7]
[401875672,1768392653841,-671.695781,0.00026659,7]
[401875673,1768392653850,-671.695781,0.00026659,7]
[401875674,1768392653860,-671.695781,0.00026659,7]
[401875675,1768392653869,-151.0,0.00026659,7]
[401875676,1768392653878,-225.938304,0.00026659,7]
[401875677,1768392653888,-151.0,0.00026659,7]
[401875678,1768392653898,-151.0,0.00026659,7]
[401875679,1768392653907,-151.0,0.00026659,7]
[401875680,1768392653917,-620.66490016,0.0002667,30]
[401875681,1768392653927,-302.73449577,0.0002667,120]
[401875682,1768392653936,-5000.0,0.00026698,2]
[401875683,1768392653946,-374.32,0.000267,7]
[401875684,1768392653955,-377.31,0.000267,7]
[401875685,1768392653965,-500.0,0.00026713,2]
[401875686,1768392653975,-2000.0,0.00026738,7]
[401875687,1768392653984,-2000.0,0.00026784,7]
[401875688,1768392653994,-190.0,0.00026798,7]
[401875689,1768392654003,-1000.0,0.00026816,7]
[401875690,1768392654013,-800.0,0.00026832,7]
[401875691,1768392654023,-550.0,0.00026849,2]
[401875692,1768392654032,-1550.0,0.00026849,2]
[401875693,1768392654042,-500.0,0.0002685,2]
[401875695,1768392654051,-800.0,0.00026852,7]
[401875697,1768392654060,-293.85068442,0.00026859,7]
[401875699,1768392654069,-2000.0,0.0002688,7]
[401875701,1768392654079,-1077.0,0.00026894,2]
[401875703,1768392654089,-40340.44,0.000269,2]
[401875705,1768392654098,-800.0,0.00026928,7]
[401875707,1768392654107,-1000.0,0.00026971,7]
[401875709,1768392654116,-200.0,0.00027,120]
[401875710,1768392654126,-1020.0,0.00027,2]
[401875711,1768392654135,-2000.0,0.00027002,7]
[401875712,1768392654144,-2840.37309884,0.0002701,2]
[401875713,1768392654158,-500.0,0.00027015,7]
[401875715,1768392654171,-800.0,0.00027064,7]
[401875717,1768392654181,-728.0,0.00027069,3]
[401875718,1768392654191,-591.12357233,0.00027078,7]
[401875721,1768392654203,-2000.0,0.00027104,7]
[401875722,1768392654212,-19313.50358939,0.00027117,2]
[401875723,1768392654221,-155.0,0.00027123,23]
[401875724,1768392654231,-3823.0,0.00027135,120]
[401875725,1768392654240,-2000.0,0.00027136,7]
[401875726,1768392654250,-825.65138265,0.00027146,2]
[401875727,1768392654261,-2840.37309884,0.00027154,2]
[401875728,1768392654270,-1000.0,0.00027177,7]
[401875729,1768392654280,-2222.24,0.000272,7]
[401875730,1768392654290,-1594.41498494,0.00027273,7]
[401875731,1768392654299,-160.0,0.00027285,5]
[401875732,1768392654309,-3247.20552054,0.00027288,7]
[401875733,1768392654318,-1145.51309932,0.00027351,23]
[401875734,1768392654327,-800.0,0.00027369,7]
[401875736,1768392654336,-800.0,0.00027385,7]
[401875738,1768392654346,-650.0,0.00027397,5]
[401875740,1768392654355,-151.0,0.00027397,7]
[401875742,1768392654365,-295.309906,0.00027397,7]
[401875744,1768392654374,-557.979687,0.00027397,3]
[401875745,1768392654384,-557.979687,0.00027397,3]
[401875747,1768392654393,-557.979687,0.00027397,3]
[401875749,1768392654402,-557.979687,0.00027397,3]
[401875750,1768392654411,-300.0,0.00027397,2]
[401875752,1768392654420,-300.0,0.00027397,2]
[401875753,1768392654430,-300.0,0.00027397,2]
[401875754,1768392654439,-300.0,0.00027397,2]
[401875755,1768392654448,-300.0,0.00027397,2]
[401875756,1768392654458,-300.0,0.00027397,2]
[401875757,1768392654467,-300.0,0.00027397,2]
[401875758,1768392654476,-300.0,0.00027397,2]
[401875759,1768392654486,-300.0,0.00027397,2]
[401875760,1768392654495,-156.87039,0.00027397,7]
[401875761,1768392654507,-500.0,0.00027397,15]
[401875762,1768392654575,-500.0,0.00027397,5]
[401875763,1768392654585,-157.45506808,0.00027397,5]
[401875764,1768392654594,-515.68473116,0.00027397,5]
[401875765,1768392654604,-1650.0,0.00027397,5]
[401875766,1768392654613,-1296.0967193,0.00027398,7]
[401875767,1768392654622,-5432.92,0.000275,14]
[401875768,1768392654631,-151.0,0.00027626,7]
[401875769,1768392654640,-151.0,0.00027626,7]
[401875770,1768392654649,-151.0,0.00027626,7]
[401875771,1768392654658,-151.0,0.00027626,7]
[401875772,1768392654667,-151.0,0.00027626,7]
[401875773,1768392654676,-151.0,0.00027626,7]
[401875774,1768392654685,-151.0,0.00027626,2]
[401875775,1768392654694,-151.0,0.00027626,7]
[401875776,1768392654870,-151.0,0.00027626,2]
[401875777,1768392654881,-1838.09205,0.00027626,7]
[401875778,1768392654891,-257.762103,0.00027626,7]
[401875779,1768392654901,-1838.09205,0.00027626,7]
[401875780,1768392654911,-1838.09205,0.00027626,7]
[401875781,1768392654920,-1838.09205,0.00027626,7]
[401875782,1768392654930,-151.0,0.00027626,7]
[401875783,1768392654940,-151.0,0.00027626,7]
[401875784,1768392654949,-174.038823,0.00027626,7]
[401875785,1768392654961,-174.038823,0.00027626,7]
[401875786,1768392654970,-174.038823,0.00027626,7]
[401875787,1768392654980,-174.038823,0.00027626,7]
[401875788,1768392654989,-386.000551,0.00027626,7]
[401875789,1768392654999,-386.000551,0.00027626,7]
[401875790,1768392655009,-386.000551,0.00027626,7]
[401875791,1768392655018,-386.000551,0.00027626,7]
[401875792,1768392655027,-5000.0,0.00027626,2]
[401875793,1768392655036,-2840.37309884,0.00027654,2]
[401875794,1768392655046,-4638.75,0.00027671,4]
[401875795,1768392655055,-500.0,0.00027671,15]
[401875796,1768392655064,-190.0,0.00027671,25]
[401875797,1768392655073,-1781.35478228,0.00027702,2]
[401875798,1768392655082,-800.0,0.00027806,2]
[401875799,1768392655091,-2840.37309884,0.00027867,2]
[401875800,1768392655101,-160.0,0.00027937,6]
[401875801,1768392655110,-500.0,0.00027945,15]
[401875802,1768392655119,-1000.0,0.00027945,5]
[401875803,1768392655129,-750.0,0.00027945,5]
[401875804,1768392655138,-1750.0,0.00027945,5]
[401875805,1768392655147,-2840.37309884,0.00027956,2]
[401875806,1768392655157,-197.0,0.00028,120]
[401875807,1768392655168,-1020.0,0.00028,2]
[401875808,1768392655177,-620.03324501,0.00028004,120]
[401875809,1768392655186,-374.32,0.000282,7]
[401875810,1768392655195,-377.31,0.000282,7]
[401875811,1768392655205,-500.0,0.00028219,15]
[401875812,1768392655214,-178.0,0.00028219,28]
[401875813,1768392655223,-1000.0,0.00028243,30]
[401875814,1768392655234,-1000.0,0.00028243,30]
[401875815,1768392655243,-1000.0,0.00028243,30]
[401875816,1768392655252,-1077.0,0.00028294,5]
[401875817,1768392655261,-40340.44,0.000283,2]
[401875818,1768392655271,-2840.37309884,0.00028311,2]
[401875819,1768392655280,-10000.0,0.000284,2]
[401875820,1768392655289,-2222.24,0.000284,7]